bitfinex/quotes_ETHUSD_20241216
["timestamp","ask_amount","ask_price","bid_price","bid_amount"]
[1734356726631,2.56468,3899.2,3898.6,0.7765]
[1734356727039,2.56475,3899.1,3898.6,0.7765]
[1734356727339,0.8272,3899.7,3898.6,0.7765]
[1734356727340,2.56451,3899.4,3898.6,0.7765]
[1734356727495,2.56473,3899.1,3898.6,0.7765]
[1734356728035,2.56451,3899.4,3898.6,0.7765]
[1734356728333,2.46210737,3898.8,3898.0,1.87298303]
[1734356728631,2.46210737,3898.8,3897.4,2.68345758]
[1734356728632,2.56545,3898.0,3897.7,0.7996]
[1734356728933,2.5655,3897.9,3897.7,0.7996]
[1734356729950,2.56554,3897.8,3897.7,0.7996]
[1734356730254,2.5654,3898.1,3897.4,0.8187]
[1734356730410,2.56584,3897.4,3897.2,0.40046274]
[1734356730614,2.56587,3897.3,3897.2,0.40046274]
[1734356739428,6.38587,3897.3,3896.0,0.759]
[1734356739628,2.56601,3897.1,3896.0,0.759]
[1734356740828,2.5662,3896.8,3896.0,0.759]
[1734356742861,2.56615,3896.9,3896.0,0.759]
[1734356745095,0.638587,3897.2,3896.0,0.759]
[1734356745312,2.56629,3896.7,3896.0,0.759]
[1734356746162,2.56607,3897.0,3896.0,0.759]
[1734356746394,0.638587,3897.2,3895.4,0.51342]
[1734356746395,2.56663,3896.2,3895.4,0.7597]
[1734356746562,0.7824,3896.6,3895.4,0.7597]
[1734356746902,0.8295,3896.9,3895.7,0.51338]
[1734356747053,2.56614,3896.9,3895.8,0.7849]
[1734356747253,5.02777737,3897.7,3896.0,0.7849]
[1734356747484,2.56599,3897.2,3896.2,0.7729]
[1734356747698,5.84527737,3897.7,3896.0,0.7729]
[1734356747699,2.5658,3897.5,3896.0,0.7729]
[1734356747993,0.8175,3898.1,3896.7,0.7729]
[1734356748196,2.56561,3897.7,3896.7,0.7729]
[1734356748913,0.8175,3898.1,3896.7,0.7729]
[1734356748914,2.56569,3897.6,3896.7,0.7729]
[1734356749771,2.56575,3897.5,3896.7,0.7729]
[1734356750172,0.8175,3898.1,3896.7,0.7729]
[1734356750517,2.56561,3897.7,3896.7,0.7729]
[1734356751298,2.56594,3897.3,3896.7,0.7729]
[1734356753780,2.56595,3897.2,3896.7,0.7729]
[1734356754020,2.56565,3897.7,3896.7,0.7729]
[1734356754021,2.56582,3897.4,3896.7,0.7729]
[1734356756132,3.0,3897.9,3896.7,0.7729]
[1734356756335,0.8175,3898.1,3896.7,0.7729]
[1734356756336,0.38175,3897.8,3896.7,0.7729]
[1734356756625,2.56597,3897.2,3896.7,0.7729]
[1734356758100,2.56583,3897.4,3896.7,0.7729]
[1734356760349,2.94733,3897.8,3896.7,0.7729]
[1734356760762,3.8175,3898.1,3896.4,0.51328]
[1734356760763,2.56548,3897.9,3896.9,0.8167]
[1734356761061,2.56536,3898.1,3897.1,0.8167]
[1734356761416,2.56536,3898.1,3897.3,0.8167]
[1734356761681,2.56544,3898.0,3897.3,0.8167]
[1734356761957,2.5654,3898.1,3897.3,0.8167]
[1734356762106,2.56495,3898.7,3897.3,0.8167]
[1734356762307,2.5655,3897.9,3897.3,0.8167]
[1734356762530,2.56556,3897.8,3897.3,0.8167]
[1734356762811,2.56562,3897.7,3897.3,0.8167]
[1734356763594,2.56551,3897.9,3897.3,0.8167]
[1734356765441,2.56555,3897.8,3897.3,0.8167]
[1734356768184,2.56561,3897.7,3897.3,0.8167]
[1734356770470,2.56535,3898.1,3897.3,0.8167]
[1734356770790,0.7788,3899.4,3897.7,0.785]
[1734356770973,0.7788,3899.4,3897.9,0.785]
[1734356770974,2.56508,3898.6,3897.9,0.785]
[1734356771179,2.56509,3898.5,3897.9,0.785]
[1734356771498,2.56523,3898.3,3897.9,0.785]
[1734356771859,2.56523,3898.3,3897.9,1.10971074]
[1734356772081,2.56541,3898.0,3897.9,0.785]
[1734356772998,2.56561,3897.7,3897.6,0.8142]
[1734356773153,5.13044,3898.3,3896.9,0.8142]
[1734356773348,2.56577,3897.5,3896.9,0.8142]
[1734356773754,2.56562,3897.7,3896.9,0.8142]
[1734356773984,2.56548,3898.0,3896.9,0.8142]
[1734356773985,2.56575,3897.5,3896.9,0.8142]
[1734356774190,2.56575,3897.5,3896.9,1.88758303]
[1734356774478,2.56575,3897.5,3897.1,0.7766]
[1734356775300,3.39075,3898.4,3897.1,0.7766]
[1734356775301,0.8256,3898.4,3897.1,0.7766]
[1734356775600,2.56594,3897.2,3897.1,0.7766]
[1734356775767,2.5662,3896.8,3896.7,0.7632]
[1734356776155,2.56594,3897.2,3896.3,0.7632]
[1734356776156,2.56647,3896.4,3896.3,0.7632]
[1734356776359,2.822604,3897.1,3896.3,0.7632]
[1734356776671,2.56629,3896.7,3896.3,0.7632]
[1734356776888,2.56612,3897.0,3896.3,0.7632]
[1734356777058,0.8181,3897.6,3896.3,0.7632]
[1734356777261,4.61007455,3898.1,3896.6,0.7567]
[1734356777262,0.7896,3898.1,3896.6,0.7567]
[1734356777485,0.7896,3898.1,3896.7,1.18591904]
[1734356777697,3.7896,3898.1,3896.7,2.25930207]
[1734356779085,3.7896,3898.1,3896.9,0.7567]
[1734356779274,0.7896,3898.1,3896.9,0.7567]
[1734356779470,5.56522,3898.3,3896.9,0.7567]
[1734356779787,6.55584104,3898.3,3897.0,0.27725421]
[1734356779957,0.99062104,3898.3,3897.1,0.02565821]
[1734356780162,0.99062104,3898.3,3897.0,0.27725421]
[1734356780497,0.99062104,3898.3,3897.1,0.8156]
[1734356780668,3.0,3898.6,3897.1,0.8156]
[1734356780869,3.63824303,3898.9,3897.6,0.51312]
[1734356781078,2.56486,3898.9,3897.7,0.8156]
[1734356781389,0.4448443,3898.8,3897.7,0.8156]
[1734356781561,0.4448443,3898.8,3897.8,0.5131]
[1734356781900,0.8102,3899.1,3897.7,0.8156]
[1734356782106,1.07338303,3899.4,3897.9,0.7769]
[1734356782305,3.33804,3899.8,3898.5,0.513]
[1734356782514,0.8483605,3899.7,3898.6,1.2899]
[1734356782892,0.8483605,3899.7,3898.7,0.51298]
[1734356783101,3.5354904,3900.0,3898.8,0.51297]
[1734356783102,2.56413,3900.0,3898.8,0.51297]
[1734356783405,2.56413,3900.0,3898.8,0.51296]
[1734356783635,2.56413,3900.0,3898.9,0.7772]
[1734356783778,0.333793,3899.9,3898.9,0.7772]
[1734356784578,2.897963,3899.9,3898.9,0.7772]
[1734356785889,2.56424,3899.8,3898.9,0.7772]
[1734356786317,2.56436,3899.7,3898.9,0.7772]
[1734356786521,2.56449,3899.4,3898.9,0.7772]
[1734356786826,0.256449,3899.3,3898.9,0.7772]
[1734356787329,2.821029,3899.3,3898.9,0.7772]
[1734356787543,2.5647,3899.1,3898.9,0.7772]
[1734356787705,2.56457,3899.3,3898.9,0.7772]
[1734356787893,2.56429,3899.7,3897.9,1.07338303]
[1734356788093,0.7715,3899.6,3898.0,0.8225]
[1734356788294,1.0613083,3899.6,3898.1,0.1895883]
[1734356788740,2.56476,3899.0,3898.1,0.1895883]
[1734356789727,2.56502,3898.7,3898.0,0.8225]
[1734356790298,2.56482,3899.0,3898.0,0.8225]
[1734356791110,1.0613083,3899.6,3898.0,0.8225]
[1734356791111,2.56482,3898.9,3898.0,0.8225]
[1734356791943,2.56501,3898.7,3898.0,0.8225]
[1734356792099,1.0613083,3899.6,3898.0,0.8225]
[1734356792468,2.56475,3899.1,3898.0,0.8225]
[1734356792947,2.56451,3899.4,3898.2,3.74035737]
[1734356793146,2.56451,3899.4,3898.3,0.7652]
[1734356793349,2.56451,3899.4,3898.4,0.7652]
[1734356793801,2.56472,3899.1,3898.4,0.7652]
[1734356794514,2.56455,3899.4,3898.5,0.7652]
[1734356794732,2.56422,3899.9,3898.5,0.7652]
[1734356794900,1.07338303,3900.4,3898.7,0.7906]
[1734356794901,2.56423,3899.8,3898.7,0.7906]
[1734356795096,0.53731211,3900.3,3898.9,0.7906]
[1734356795347,2.56413,3900.0,3899.1,0.7906]
[1734356795546,0.53731211,3900.3,3899.1,0.7906]
[1734356795764,2.56387,3900.4,3899.1,0.7906]
[1734356796048,2.56415,3900.0,3899.1,0.7906]
[1734356796565,0.8184,3900.7,3899.1,0.7906]
[1734356796721,2.56405,3900.1,3899.1,0.7906]
[1734356797569,1.07338303,3901.3,3899.5,2.46210737]
[1734356797757,2.56371,3900.6,3899.7,0.7781]
[1734356797903,0.34990576,3901.2,3899.6,0.24621074]
[1734356797904,2.5633,3901.3,3899.9,0.7781]
[1734356798108,2.5636,3900.8,3899.9,0.7781]
[1734356798508,2.56365,3900.7,3899.9,0.7781]
[1734356798708,0.8156,3901.4,3899.9,0.7781]
[1734356799030,2.56371,3900.6,3899.9,0.7781]
[1734356800547,2.56359,3900.8,3899.9,0.7781]
[1734356800721,2.56364,3900.7,3899.9,0.7781]
[1734356801451,2.5636,3900.8,3899.9,0.7781]
[1734356801652,2.5636,3900.8,3900.1,0.7821]
[1734356801949,2.56346,3901.0,3900.1,0.7821]
[1734356802116,2.56353,3900.9,3900.1,0.7821]
[1734356802316,2.56353,3900.9,3900.1,0.92696571]
[1734356803051,2.56309,3901.6,3900.1,0.92696571]
[1734356803257,2.56341,3901.1,3900.1,0.92696571]
[1734356803731,3.27440737,3901.7,3900.1,0.92696571]
[1734356804050,2.56318,3901.4,3900.3,0.7605]
[1734356804459,2.56378,3900.5,3900.3,0.7605]
[1734356805548,2.56349,3901.0,3900.3,0.7605]
[1734356805756,0.58372974,3901.6,3900.3,0.7605]
[1734356805910,2.56353,3900.9,3900.3,0.7605]
[1734356806113,2.56358,3900.8,3900.3,0.7605]
[1734356806573,2.56383,3900.4,3900.3,0.7605]
[1734356806714,2.55456489,3900.4,3900.3,0.7605]
[1734356809738,3.0,3900.3,3899.2,0.809]
[1734356809919,0.7597,3900.9,3899.2,0.809]
[1734356809920,3.0,3900.6,3899.2,0.809]
[1734356810115,2.56392,3900.3,3899.4,0.7657]
[1734356810419,3.0,3900.4,3899.4,0.7657]
[1734356811049,3.0,3900.7,3899.4,0.7657]
[1734356811219,3.39502,3901.5,3899.8,0.7758]
[1734356811416,2.56363,3900.8,3899.8,0.7758]
[1734356811920,2.56372,3900.6,3899.8,0.7758]
[1734356812121,0.8319,3901.5,3899.8,0.7758]
[1734356812122,2.56377,3900.5,3899.8,0.7758]
[1734356812319,0.8319,3901.5,3899.8,0.7758]
[1734356812637,2.5637,3900.6,3899.8,0.7758]
[1734356812817,2.56335,3901.2,3899.8,0.7758]
[1734356812818,2.56377,3900.5,3899.8,0.7758]
[1734356813320,6.49661637,3901.5,3899.8,0.7758]
[1734356813624,2.56365,3900.7,3899.8,0.7758]
[1734356814114,3.0,3901.4,3899.8,0.7758]
[1734356814315,2.56368,3900.7,3900.0,0.7826]
[1734356814558,2.56371,3900.6,3900.0,0.7826]
[1734356814866,2.56377,3900.5,3900.0,0.7826]
[1734356815023,3.0,3901.4,3900.0,0.7826]
[1734356815226,2.5639,3900.3,3900.0,0.7826]
[1734356815577,2.56331,3901.2,3900.0,0.7826]
[1734356815757,3.0,3901.4,3900.0,0.7826]
[1734356815758,2.56373,3900.6,3900.0,0.7826]
[1734356816570,2.5635,3901.0,3900.0,0.7826]
[1734356817052,2.5635,3901.0,3900.2,0.799]
[1734356817239,0.8319,3901.5,3900.2,0.799]
[1734356817240,2.56334,3901.2,3900.2,0.799]
[1734356817441,0.8319,3901.5,3900.2,0.799]
[1734356817442,2.56325,3901.3,3900.2,0.799]
[1734356817756,2.56325,3901.3,3900.4,0.7554]
[1734356817757,2.56326,3901.3,3900.4,0.7554]
[1734356817955,2.5631,3901.6,3900.4,0.7554]
[1734356818152,2.56337,3901.2,3900.4,0.7554]
[1734356820765,0.8041,3901.8,3900.4,0.7554]
[1734356821085,2.46210737,3901.6,3900.4,0.7554]
[1734356821250,2.56369,3900.7,3900.4,0.7554]
[1734356821446,0.7962,3901.1,3900.4,0.7554]
[1734356821757,2.56371,3900.6,3900.4,0.7554]
[1734356823045,2.56377,3900.5,3900.4,0.7554]
[1734356823295,2.56377,3900.5,3899.3,0.752]
[1734356823518,0.7869,3900.7,3899.3,0.752]
[1734356823795,2.56426,3899.8,3899.3,0.752]
[1734356824067,2.46210737,3900.8,3899.3,0.752]
[1734356824068,0.7869,3900.3,3899.3,0.752]
[1734356824405,5.12794,3900.2,3899.3,0.752]
[1734356824643,3.40166474,3900.2,3899.3,0.752]
[1734356824840,2.5641,3900.0,3899.3,0.752]
[1734356825042,2.56445,3899.5,3899.3,0.752]
[1734356825407,2.56397,3900.2,3899.3,0.752]
[1734356825408,2.56449,3899.4,3899.3,0.752]
[1734356826438,2.56469,3899.1,3898.3,0.8138]
[1734356826604,2.56469,3899.1,3898.5,0.8138]
[1734356826804,2.56449,3899.4,3898.5,0.8138]
[1734356827037,2.56482,3899.0,3898.5,0.8138]
[1734356827251,0.7975,3899.5,3898.5,0.8138]
[1734356827460,2.56488,3898.9,3898.5,0.8138]
[1734356827780,2.56502,3898.6,3898.5,0.8138]
[1734356827979,2.56522,3898.3,3898.1,0.7637]
[1734356829833,2.56528,3898.2,3897.8,0.7575]
[1734356830277,2.56502,3898.6,3897.8,0.7575]
[1734356830431,2.46210737,3898.8,3897.8,0.7575]
[1734356830633,2.56457,3899.3,3897.5,0.816]
[1734356830634,3.38432,3898.3,3897.5,0.816]
[1734356830870,2.56574,3897.5,3897.4,0.26663577]
[1734356831080,2.56562,3897.7,3897.1,0.816]
[1734356831801,3.38435,3898.3,3897.1,0.816]
[1734356831983,0.336191,3899.4,3897.3,0.7771]
[1734356831984,0.778,3898.7,3897.3,0.7771]
[1734356832310,0.778,3898.7,3896.7,2.46210737]
[1734356832311,0.778,3898.7,3897.5,0.7771]
[1734356832469,2.5653,3898.2,3897.5,0.7771]
[1734356833350,2.56502,3898.6,3897.5,0.7771]
[1734356833597,2.56528,3898.3,3897.5,0.7771]
[1734356834311,2.56541,3898.1,3897.5,0.7771]
[1734356834603,2.56542,3898.0,3897.5,0.7771]
[1734356835510,2.56504,3898.6,3897.6,0.7877]
[1734356835666,0.8061,3899.1,3897.6,0.7877]
[1734356836003,2.56516,3898.4,3897.6,0.7877]
[1734356836718,2.46210737,3898.8,3897.6,0.7877]
[1734356837018,2.56523,3898.3,3897.6,0.7877]
[1734356837917,2.46210737,3898.4,3897.6,0.7877]
[1734356838277,2.56522,3898.3,3897.6,0.7877]
[1734356838478,3.06795274,3898.3,3897.6,0.7877]
[1734356838678,2.56561,3897.7,3896.7,0.7877]
[1734356838903,2.46210737,3898.4,3896.7,0.7877]
[1734356838904,2.56574,3897.5,3896.7,0.7877]
[1734356839853,2.56561,3897.7,3896.7,0.7877]
[1734356840038,2.56568,3897.6,3896.7,0.7877]
[1734356840242,2.56568,3897.6,3896.8,0.130097]
[1734356840859,2.56575,3897.5,3896.8,0.130097]
[1734356841218,2.56562,3897.7,3896.8,0.130097]
[1734356841918,0.7612,3898.7,3896.9,0.7562]
[1734356842118,3.3262,3898.7,3897.2,0.7562]
[1734356842360,2.56548,3897.9,3897.2,0.7562]
[1734356842731,2.46210737,3898.1,3897.2,0.7562]
[1734356842958,0.24621074,3898.0,3897.2,0.7562]
[1734356843398,2.56575,3897.5,3897.2,0.7562]
[1734356844188,2.56562,3897.7,3897.2,0.7562]
[1734356845581,2.46210737,3898.1,3897.2,0.7562]
[1734356845957,2.56556,3897.8,3897.2,0.7562]
[1734356846151,5.02749737,3898.1,3897.2,0.7562]
[1734356846381,2.56569,3897.6,3897.2,0.7562]
[1734356847278,3.34097711,3898.1,3897.2,0.7562]
[1734356847479,2.56584,3897.4,3896.2,0.51331]
[1734356847783,2.56584,3897.4,3896.4,0.8165]
[1734356848575,2.56567,3897.7,3896.4,0.8165]
[1734356848867,2.56569,3897.6,3896.7,0.8165]
[1734356849065,2.56569,3897.6,3896.8,0.132976]
[1734356849461,3.0,3898.3,3896.9,0.8165]
[1734356849462,2.56551,3897.9,3896.9,0.8165]
[1734356849877,0.7883,3898.3,3896.9,0.8165]
[1734356849878,2.5656,3897.8,3896.9,0.8165]
[1734356850083,2.46210737,3898.1,3896.9,0.8165]
[1734356850898,2.5658,3897.5,3896.9,0.8165]
[1734356851655,2.56545,3898.0,3897.0,0.8501602]
[1734356851856,2.46210737,3898.5,3897.2,0.8245]
[1734356851857,5.02723737,3898.5,3897.2,0.8245]
[1734356852111,2.56535,3898.1,3897.3,0.13633574]
[1734356852768,2.56523,3898.3,3897.3,0.13633574]
[1734356853015,2.56523,3898.3,3897.4,0.7562]
[1734356853659,2.46210737,3898.9,3897.3,0.64950574]
[1734356853660,2.56498,3898.7,3897.6,0.7562]
[1734356854056,2.56505,3898.6,3897.6,0.7562]
[1734356854969,2.56509,3898.5,3897.6,0.7562]
[1734356855169,2.56509,3898.5,3897.6,0.89677057]
[1734356855602,3.0,3899.4,3898.0,0.51307]
[1734356855603,2.56449,3899.4,3898.0,0.51307]
[1734356855821,2.56462,3899.3,3898.2,0.7959]
[1734356856030,2.56463,3899.2,3898.2,0.7959]
[1734356856311,2.56463,3899.2,3898.4,0.7959]
[1734356856510,2.56475,3899.1,3898.4,0.7959]
[1734356857113,2.46210737,3899.5,3898.4,0.7959]
[1734356857407,2.56482,3898.9,3898.4,0.7959]
[1734356857906,2.56449,3899.4,3898.4,0.7959]
[1734356858113,2.46210737,3899.5,3898.4,0.7959]
[1734356858267,2.56475,3899.1,3898.4,0.7959]
[1734356858606,2.56476,3899.0,3898.4,0.7959]
[1734356859115,2.56464,3899.2,3898.4,0.7959]
[1734356859414,2.56469,3899.1,3898.4,0.7959]
[1734356859581,1.32338303,3900.7,3898.0,0.51307]
[1734356859582,0.8275,3900.4,3898.6,0.7567]
[1734356859908,2.56384,3900.4,3899.3,0.7567]
[1734356860615,2.56393,3900.3,3899.3,0.7567]
[1734356860909,2.56397,3900.2,3899.3,0.7567]
[1734356861116,2.56407,3900.1,3899.3,0.7567]
[1734356862177,2.5641,3900.0,3899.3,0.7567]
[1734356862796,2.56398,3900.2,3899.3,0.7567]
[1734356863916,3.06640974,3900.5,3899.3,0.7567]
[1734356864131,2.56407,3900.1,3899.3,0.7567]
[1734356864412,2.56407,3900.1,3899.0,0.51295]
[1734356864413,1.07338303,3901.6,3900.1,0.7651]
[1734356864732,0.7849,3902.0,3900.7,0.7651]
[1734356865074,2.56303,3901.7,3900.7,0.7651]
[1734356865871,0.7849,3902.0,3900.7,0.7651]
[1734356866302,2.56327,3901.3,3900.7,0.7651]
[1734356866507,2.56291,3901.8,3900.7,0.7651]
[1734356866508,2.56314,3901.5,3900.7,0.7651]
[1734356867516,0.634781,3901.7,3900.7,0.7651]
[1734356867721,2.56324,3901.3,3900.7,0.7651]
[1734356869631,0.8122,3903.7,3900.7,0.7651]
[1734356869777,0.8122,3903.7,3899.2,7.58509192]
[1734356869778,2.56246,3902.5,3901.2,0.7786]
[1734356869979,2.5624,3902.6,3901.3,0.80423041]
[1734356870198,0.8122,3902.9,3901.3,0.7786]
[1734356870199,2.56237,3902.7,3901.3,0.7786]
[1734356870428,2.56239,3902.6,3901.3,0.7786]
[1734356870575,2.56286,3901.9,3901.3,0.7786]
[1734356870777,0.256286,3901.8,3900.4,0.7511]
[1734356870983,0.803,3901.7,3900.4,0.7511]
[1734356871206,2.56327,3901.3,3900.4,0.7511]
[1734356872519,2.56341,3901.1,3900.4,0.7511]
[1734356872722,2.56345,3901.0,3900.4,0.7511]
[1734356875003,0.803,3901.7,3900.4,0.7511]
[1734356875004,2.56305,3901.6,3900.4,0.7511]
[1734356875197,2.56377,3900.5,3899.6,0.7977]
[1734356875437,2.56385,3900.4,3899.6,0.7977]
[1734356875740,2.5637,3900.7,3899.6,0.7977]
[1734356875929,2.56351,3900.9,3899.6,0.7977]
[1734356876139,2.56371,3900.6,3899.7,0.131059]
[1734356877816,2.56378,3900.5,3899.7,0.131059]
[1734356878407,2.56358,3900.8,3899.8,0.786]
[1734356878702,2.56366,3900.7,3899.8,0.786]
[1734356879731,2.56375,3900.6,3899.8,0.786]
[1734356879965,2.56375,3900.6,3899.8,1.17520364]
[1734356880472,2.56359,3900.8,3899.8,1.17520364]
[1734356882725,0.8,3901.3,3899.8,1.17520364]
[1734356882926,2.56365,3900.7,3899.8,1.17520364]
[1734356883133,2.56371,3900.6,3899.8,1.17520364]
[1734356883333,2.56337,3901.1,3899.8,1.17520364]
[1734356883334,2.56352,3900.9,3899.9,0.13062626]
[1734356883559,2.56352,3900.9,3899.8,0.786]
[1734356884045,2.56398,3900.2,3899.8,0.786]
[1734356884239,2.56344,3901.0,3899.8,0.786]
[1734356884488,2.56344,3901.0,3898.4,3.0]
[1734356884489,2.56443,3899.5,3899.4,0.7768]
[1734356884713,2.56383,3900.4,3898.4,0.7768]
[1734356884714,3.0,3900.0,3898.4,0.7768]
[1734356884913,2.56423,3899.8,3898.4,0.7768]
[1734356885117,2.56454,3899.4,3898.4,0.7768]
[1734356886289,2.5646,3899.3,3898.4,0.7768]
[1734356886876,2.56444,3899.5,3898.4,0.7768]
[1734356887079,2.56451,3899.4,3898.4,0.7768]
[1734356887391,2.56451,3899.4,3898.5,0.128983]
[1734356888305,3.0,3899.7,3898.5,0.128983]
[1734356888492,2.56461,3899.3,3898.5,0.128983]
[1734356888933,2.56429,3899.7,3898.5,0.128983]
[1734356888934,2.56463,3899.2,3898.5,0.128983]
[1734356889154,3.3532,3899.9,3898.5,0.128983]
[1734356889155,2.56476,3899.0,3898.5,0.128983]
[1734356889437,3.3532,3899.9,3898.4,0.7768]
[1734356889438,3.0,3899.7,3898.4,0.7768]
[1734356889637,2.56486,3898.9,3898.4,0.7768]
[1734356889818,2.56455,3899.4,3898.4,0.7768]
[1734356890018,3.121005,3899.4,3898.4,0.7768]
[1734356890224,2.56492,3898.8,3898.4,0.7768]
[1734356890594,2.56456,3899.3,3898.4,0.7768]
[1734356890595,2.56475,3899.1,3898.4,0.7768]
[1734356890796,2.56484,3898.9,3898.4,0.7768]
[1734356891709,2.56496,3898.7,3898.4,0.7768]
[1734356891912,2.46210737,3899.4,3898.1,0.8151]
[1734356892133,2.56523,3898.3,3898.1,0.8151]
[1734356892993,0.8299,3898.9,3898.1,0.8151]
[1734356893296,2.56528,3898.2,3898.1,0.8151]
[1734356894443,2.56539,3898.1,3897.8,0.8151]
[1734356896097,2.56523,3898.3,3897.8,0.8151]
[1734356900753,3.0,3898.9,3897.8,0.8151]
[1734356901106,2.56509,3898.5,3897.8,0.8151]
[1734356901600,2.56516,3898.4,3897.8,0.8151]
[1734356902214,2.46210737,3899.0,3897.8,0.8151]
[1734356902443,2.5653,3898.2,3897.8,0.8151]
[1734356902645,2.56536,3898.1,3897.8,0.8151]
[1734356903142,2.56506,3898.6,3897.8,0.8151]
[1734356903356,0.62518074,3898.9,3897.8,0.8151]
[1734356903503,2.56521,3898.4,3897.8,0.8151]
[1734356905326,2.56496,3898.7,3897.8,0.8151]
[1734356905617,2.56509,3898.5,3897.9,0.7531]
[1734356906453,3.7897,3899.2,3897.9,0.7531]
[1734356906751,2.56497,3898.7,3897.9,0.7531]
[1734356907110,3.35438,3899.2,3897.9,0.7531]
[1734356907312,2.56534,3898.2,3897.9,0.7531]
[1734356907756,2.46210737,3898.2,3897.5,0.802]
[1734356907948,2.56581,3897.4,3897.3,0.26693478]
[1734356908307,2.56581,3897.4,3897.3,4.78e-06]
[1734356908508,2.56653,3896.3,3896.2,0.8242]
[1734356909054,2.56681,3895.9,3895.8,0.7591]
[1734356909560,2.56681,3895.9,3895.4,0.7591]
[1734356909718,2.56706,3895.6,3895.4,0.7591]
[1734356909923,2.56681,3895.9,3895.4,0.7591]
[1734356910124,2.56703,3895.6,3895.4,0.7591]
[1734356910325,0.513384,3895.6,3895.2,0.40068661]
[1734356910682,2.56689,3895.8,3895.2,0.40068661]
[1734356910683,2.56716,3895.4,3895.2,0.40068661]
[1734356911034,2.46210737,3896.0,3895.2,0.40068661]
[1734356911222,2.56698,3895.7,3895.2,0.40068661]
[1734356911667,2.46210737,3896.0,3895.2,0.40068661]
[1734356911668,2.56675,3896.0,3895.2,0.40068661]
[1734356911823,2.56656,3896.3,3895.2,0.40068661]
[1734356912024,2.5666,3896.3,3895.2,0.40068661]
[1734356912656,2.8664,3896.5,3895.2,0.40068661]
[1734356912816,2.56649,3896.4,3895.3,0.7828]
[1734356913262,0.3,3896.5,3895.3,0.7828]
[1734356913622,2.56629,3896.7,3895.5,0.51341]
[1734356914572,3.7519,3897.0,3895.3,0.7828]
[1734356914573,6.31799,3897.0,3895.3,0.7828]
[1734356914778,2.56634,3896.6,3895.3,0.7828]
[1734356915299,2.5662,3896.9,3895.5,0.51341]
[1734356915596,2.5662,3896.9,3895.5,0.02566883]
[1734356915908,2.56596,3897.2,3895.9,1.29065]
[1734356916213,1.7887675,3897.4,3895.9,1.29065]
[1734356916214,3.00148275,3897.1,3895.9,1.29065]
[1734356916418,1.7887675,3897.4,3895.9,1.29065]
[1734356916568,2.56609,3897.0,3895.9,1.29065]
[1734356917580,2.56593,3897.3,3895.9,0.7773]
[1734356917914,1.65911774,3897.4,3896.0,0.02566478]
[1734356917915,0.84051774,3897.4,3896.0,0.02566478]
[1734356918208,0.84051774,3897.4,3895.2,0.40068661]
[1734356918209,2.56567,3897.7,3896.4,0.51329]
[1734356918508,2.56574,3897.5,3896.4,0.51329]
[1734356919070,2.5656,3897.8,3896.5,0.51327]
[1734356919265,0.90210301,3897.8,3896.4,1.28709]
[1734356919466,3.8900601,3898.0,3896.4,0.7738]
[1734356919467,2.56618,3896.9,3896.4,0.7738]
[1734356920430,3.0,3896.3,3894.3,0.7583]
[1734356920592,2.56739,3895.0,3894.3,0.7583]
[1734356920774,2.56739,3895.0,3894.4,0.40071304]
[1734356920970,2.56748,3894.9,3894.4,0.40071304]
[1734356921274,2.56752,3894.8,3894.4,0.40071304]
[1734356921509,2.56772,3894.5,3894.4,0.40071304]
[1734356921817,0.256752,3894.8,3893.0,0.8308]
[1734356921818,2.56793,3894.2,3893.0,0.8308]
[1734356922060,2.56798,3894.2,3893.9,0.40085785]
[1734356922186,2.56798,3894.2,3893.0,0.8308]
[1734356922392,2.56794,3894.2,3893.9,0.40087522]
[1734356922589,2.56798,3894.1,3893.9,0.40087522]
[1734356922790,2.56798,3894.1,3893.0,0.8308]
[1734356923122,0.256752,3894.8,3894.0,0.8308]
[1734356923123,2.5678,3894.4,3894.0,0.8308]
[1734356923325,2.5678,3894.4,3892.7,0.51377]
[1734356923326,0.7787,3893.9,3891.8,0.8308]
[1734356923538,2.56851,3893.3,3892.4,0.40090258]
[1734356923677,2.56852,3893.3,3892.5,0.8308]
[1734356924035,2.88500304,3893.5,3892.5,0.8308]
[1734356924036,2.56859,3893.2,3892.5,0.8308]
[1734356924173,3.43032334,3893.5,3892.5,0.8308]
[1734356924375,2.56844,3893.4,3892.5,0.8308]
[1734356924568,2.88500304,3893.5,3892.5,0.8308]
[1734356924772,2.56851,3893.3,3892.5,0.8308]
[1734356925801,2.56837,3893.6,3892.5,0.8308]
[1734356926003,2.56837,3893.6,3892.5,0.965262]
[1734356926202,3.66370304,3893.9,3892.5,0.965262]
[1734356926401,2.56839,3893.5,3892.5,0.965262]
[1734356926989,3.66370304,3893.9,3892.5,0.965262]
[1734356927189,3.66370304,3893.9,3892.5,0.8308]
[1734356927404,2.56825,3893.7,3892.5,0.8308]
[1734356927610,2.56818,3893.8,3892.5,0.8308]
[1734356927821,3.66370304,3893.9,3892.5,0.8308]
[1734356927994,2.56825,3893.7,3892.5,0.8308]
[1734356928180,2.56825,3893.7,3892.5,0.965262]
[1734356929215,3.0,3893.6,3892.6,0.51378]
[1734356929425,5.45316304,3893.9,3892.6,0.51378]
[1734356929426,5.56819,3893.8,3892.6,0.51378]
[1734356929587,6.4135093,3893.8,3892.6,0.51378]
[1734356929931,2.88500304,3894.3,3893.0,0.8041]
[1734356930141,2.56793,3894.2,3893.0,0.8041]
[1734356930298,2.568,3894.1,3893.0,0.8041]